bitfinex-derivatives/quotes_BNBF0:USTF0_20250810
["timestamp","ask_amount","ask_price","bid_price","bid_amount"]
[1754853566516,0.5,805.26,804.63,2.7980894]
[1754853567519,0.5,805.26,804.61,2.7980894]
[1754853568218,0.5,805.26,804.62,2.7980894]
[1754853568815,0.5,805.26,804.65,2.7980894]
[1754853569619,0.5,805.26,804.67,2.7980894]
[1754853570216,0.5,805.26,804.38,3.9173252]
[1754853570217,0.5,805.26,804.69,2.7980894]
[1754853572822,0.5,805.26,804.76,2.7980894]
[1754853581626,0.5,805.26,804.09,5.5961788]
[1754853582530,0.5,805.26,804.07,0.21620144]
[1754853590538,0.5,805.26,804.26,2.7980894]
[1754853591637,0.21622965,805.62,804.07,0.21620144]
[1754853591638,0.21622965,805.62,804.45,2.7980894]
[1754853592134,0.21622965,805.62,804.68,2.7980894]
[1754853592538,0.5,805.2,804.61,2.7980894]
[1754853593234,0.5,805.2,804.58,2.7980894]
[1754853593736,0.5,805.2,804.56,2.7980894]
[1754853594237,0.5,805.2,804.57,2.7980894]
[1754853594637,0.5,805.2,804.53,2.7980894]
[1754853595234,0.5,805.2,804.5,2.7980894]
[1754853595733,0.5,805.2,804.44,2.7980894]
[1754853596141,0.5,805.2,804.42,2.7980894]
[1754853596738,0.5,805.2,804.4,2.7980894]
[1754853597339,0.5,805.2,804.34,2.7980894]
[1754853597839,0.5,805.2,804.32,2.7980894]
[1754853598340,0.5,805.2,804.29,2.7980894]
[1754853598740,0.5,805.2,804.17,0.2163029]
[1754853598741,0.5,805.2,804.3,2.7980894]
[1754853599440,0.5,805.2,804.29,2.7980894]
[1754853599841,0.5,805.2,804.28,2.7980894]
[1754853600937,0.5,805.2,804.29,2.7980894]
[1754853601538,0.5,805.2,804.27,2.7980894]
[1754853601936,0.5,805.2,804.26,2.7980894]
[1754853602441,0.5,805.2,804.27,2.7980894]
[1754853604543,0.5,805.2,804.26,2.7980894]
[1754853605045,0.5,805.2,804.27,2.7980894]
[1754853605645,0.5,805.2,804.26,2.7980894]
[1754853606141,0.5,805.2,804.28,2.7980894]
[1754853606647,0.5,805.2,804.26,2.7980894]
[1754853607748,0.5,805.2,804.35,2.7980894]
[1754853609248,0.5,805.2,804.38,2.7980894]
[1754853610246,0.5,805.2,804.37,2.7980894]
[1754853610950,0.5,805.2,804.38,2.7980894]
[1754853611852,0.5,805.2,804.37,2.7980894]
[1754853612453,0.5,805.2,804.36,2.7980894]
[1754853612949,0.5,805.2,804.4,2.7980894]
[1754853613453,0.5,805.2,804.41,2.7980894]
[1754853613848,0.5,805.2,804.43,2.7980894]
[1754853615555,0.5,805.2,804.44,2.7980894]
[1754853615955,0.5,805.2,804.41,2.7980894]
[1754853616456,0.5,805.2,804.4,2.7980894]
[1754853617554,0.5,805.2,804.39,2.7980894]
[1754853617953,0.5,805.2,804.41,2.7980894]
[1754853618558,0.5,805.2,804.44,2.7980894]
[1754853619257,0.5,805.2,804.43,2.7980894]
[1754853619659,0.5,805.2,804.41,2.7980894]
[1754853620155,0.5,805.2,804.39,2.7980894]
[1754853620559,0.5,805.2,804.36,2.7980894]
[1754853621056,0.5,805.2,804.37,2.7980894]
[1754853621761,0.5,805.2,804.39,2.7980894]
[1754853622359,0.5,805.2,804.41,2.7980894]
[1754853622762,0.5,805.2,804.4,2.7980894]
[1754853623157,0.5,805.2,804.38,2.7980894]
[1754853623662,0.5,805.2,804.36,2.7980894]
[1754853624362,0.5,805.2,804.34,2.7980894]
[1754853625261,0.5,805.2,804.35,2.7980894]
[1754853625764,0.5,805.2,804.36,2.7980894]
[1754853626466,0.5,805.2,804.35,2.7980894]
[1754853626962,0.5,805.2,804.34,2.7980894]
[1754853627168,0.5,805.2,804.35,2.7980894]
[1754853627763,0.5,805.2,804.17,0.2163029]
[1754853627764,0.5,805.2,804.25,2.7980894]
[1754853627964,0.262,805.18,804.25,2.7980894]
[1754853628169,0.262,805.18,804.17,0.2163029]
[1754853634375,0.262,805.18,804.32,2.7980894]
[1754853635474,0.262,805.18,804.31,2.7980894]
[1754853638173,0.5,805.2,804.31,2.7980894]
[1754853638678,0.5,805.2,804.17,3.0143923]
[1754853639079,0.5,805.2,804.21,2.7980894]
[1754853639574,0.5,805.2,804.24,2.7980894]
[1754853640077,0.5,805.2,804.25,2.7980894]
[1754853640777,0.5,805.2,804.28,2.7980894]
[1754853642375,0.5,805.2,804.27,2.7980894]
[1754853643884,0.5,805.2,804.28,2.7980894]
[1754853644483,0.5,805.2,804.29,2.7980894]
[1754853644884,0.5,805.2,804.3,2.7980894]
[1754853647687,0.5,805.2,804.17,3.0143923]
[1754853648092,0.5,805.2,804.18,2.7980894]
[1754853648591,0.5,805.2,804.51,2.7980894]
[1754853649088,0.5,805.2,804.5,2.7980894]
[1754853650788,0.5,805.2,804.44,2.7980894]
[1754853653294,0.5,805.2,804.43,2.7980894]
[1754853655196,0.5,805.2,804.28,2.7980894]
[1754853655395,0.262,805.2,804.28,2.7980894]
[1754853656191,0.262,805.2,804.27,2.7980894]
[1754853657396,0.262,805.2,804.35,2.7980894]
[1754853658398,0.262,805.2,804.37,2.7980894]
[1754853658799,0.262,805.2,804.38,2.7980894]
[1754853659398,0.262,805.2,804.37,2.7980894]
[1754853660897,0.262,805.2,804.4,2.7980894]
[1754853661401,0.262,805.2,804.39,2.7980894]
[1754853662603,0.262,805.2,804.38,2.7980894]
[1754853663004,0.262,805.2,804.35,2.7980894]
[1754853664501,0.262,805.2,804.27,2.7980894]
[1754853665300,0.262,805.2,804.38,2.7980894]
[1754853667802,0.262,805.2,804.22,2.7980894]
[1754853668304,0.262,805.2,804.05,0.21633181]
[1754853669405,0.5,804.91,804.05,0.21633181]
[1754853679615,0.5,804.91,804.1,2.7980894]
[1754853680309,0.5,804.91,804.11,2.7980894]
[1754853680714,0.5,804.91,804.1,2.7980894]
[1754853681210,0.5,804.91,804.11,2.7980894]
[1754853682415,0.5,804.91,804.15,2.7980894]
[1754853683414,0.5,804.91,804.09,2.7980894]
[1754853683809,0.5,804.91,804.12,2.7980894]
[1754853684413,0.5,804.91,804.13,2.7980894]
[1754853684814,0.5,804.91,804.16,2.7980894]
[1754853686616,0.5,804.91,804.18,2.7980894]
[1754853687421,0.5,804.91,804.05,0.21633181]
[1754853687422,0.5,804.91,804.12,2.7980894]
[1754853687917,0.5,804.91,804.14,2.7980894]
[1754853689022,0.5,804.91,803.83,0.21640042]
[1754853692623,0.5,804.74,803.83,0.21640042]
[1754853703242,0.5,804.74,803.98,3.9173252]
[1754853703639,0.21629282,805.24,804.26,2.7980894]
[1754853704242,0.5,804.73,804.28,2.7980894]
[1754853704842,0.5,804.73,804.01,3.9173252]
[1754853704843,0.5,804.73,804.27,2.7980894]
[1754853705342,0.5,804.73,804.28,2.7980894]
[1754853706744,0.5,804.73,804.27,2.7980894]
[1754853707346,0.5,804.73,804.3,2.7980894]
[1754853708348,0.5,804.73,804.21,2.7980894]
[1754853708845,0.5,804.73,804.2,2.7980894]
[1754853709445,0.5,804.73,804.21,2.7980894]
[1754853710352,0.5,804.73,804.22,2.7980894]
[1754853712548,0.5,804.73,804.25,2.7980894]
[1754853713651,0.21629282,805.24,804.29,2.7980894]
[1754853714053,0.21629282,805.24,804.28,2.7980894]
[1754853714352,0.5,804.74,804.28,2.7980894]
[1754853714552,0.5,804.74,804.21,2.7980894]
[1754853715053,0.5,804.74,804.19,2.7980894]
[1754853716053,0.5,804.74,804.2,2.7980894]
[1754853717752,0.5,804.74,804.18,2.7980894]
[1754853718155,0.5,804.74,804.25,2.7980894]
[1754853719358,0.5,804.74,804.21,2.7980894]
[1754853720458,0.5,804.74,803.91,3.9173252]
[1754853720959,0.5,804.74,803.83,0.21640042]
[1754853753280,0.5,804.56,803.56,2.7980894]
[1754853753474,0.5,804.56,803.65,2.7980894]
[1754853753874,0.5,804.56,803.68,2.7980894]
[1754853754379,0.5,804.56,803.66,2.7980894]
[1754853755381,0.5,804.56,803.65,2.7980894]
[1754853756477,0.5,804.56,803.63,0.21647782]
[1754853762685,0.5,805.12,803.63,0.21647782]
[1754853762988,0.348,804.92,803.63,0.21647782]
[1754853763590,0.5,804.84,803.63,0.21647782]
[1754853764087,0.5,805.08,803.63,0.21647782]
[1754853764287,0.348,805.05,804.03,2.7980894]
[1754853765287,0.348,805.05,803.93,2.7980894]
[1754853765491,0.5,805.08,803.93,2.7980894]
[1754853765695,0.5,805.08,804.03,2.7980894]
[1754853765891,0.5,805.21,804.03,2.7980894]
[1754853766291,0.5,805.21,804.43,2.7980894]
[1754853767394,0.5,805.21,804.36,2.7980894]
[1754853768393,0.5,805.21,804.28,2.7980894]
[1754853769396,0.5,805.21,804.27,2.7980894]
[1754853770598,0.5,805.21,804.23,2.7980894]
[1754853771499,0.5,805.21,804.18,2.7980894]
[1754853771999,0.5,805.21,804.19,2.7980894]
[1754853772699,0.5,805.21,804.16,2.7980894]
[1754853773498,0.5,805.21,804.13,2.7980894]
[1754853774801,0.5,805.21,804.1,2.7980894]
[1754853775799,0.5,805.21,804.08,2.7980894]
[1754853776200,0.5,805.21,804.18,2.7980894]
[1754853777402,0.5,805.21,804.02,2.7980894]
[1754853778305,0.5,805.21,804.05,2.7980894]
[1754853779307,0.5,805.21,804.08,2.7980894]
[1754853781409,0.5,805.21,804.06,2.7980894]
[1754853782609,0.5,805.21,804.04,2.7980894]
[1754853783506,0.5,805.21,804.03,2.7980894]
[1754853784511,0.5,805.21,804.02,2.7980894]
[1754853785709,0.5,805.21,803.98,2.7980894]
[1754853786605,0.5,805.21,803.97,2.7980894]
[1754853787605,0.5,805.21,804.1,2.7980894]
[1754853788109,0.5,805.21,804.09,2.7980894]
[1754853788606,0.5,805.21,804.08,2.7980894]
[1754853789706,0.5,805.21,804.07,2.7980894]
[1754853791307,0.5,805.21,804.06,2.7980894]
[1754853792410,0.5,805.21,804.05,2.7980894]
[1754853794414,0.5,805.21,804.04,2.7980894]
[1754853801616,0.5,805.21,804.05,2.7980894]
[1754853802215,0.5,805.21,804.04,2.7980894]
[1754853802618,0.5,805.21,804.05,2.7980894]
[1754853803216,0.5,805.21,804.0,2.7980894]
[1754853804315,0.5,805.21,804.01,2.7980894]
[1754853805816,0.5,805.21,804.02,2.7980894]
[1754853808520,0.5,805.21,803.89,2.7980894]
[1754853809424,0.5,805.21,803.9,2.7980894]
[1754853810426,0.5,805.21,803.91,2.7980894]
[1754853811625,0.5,805.21,803.92,2.7980894]
[1754853812524,0.5,805.21,803.93,2.7980894]
[1754853813225,0.5,805.21,804.01,2.7980894]
[1754853813627,0.5,805.21,804.05,2.7980894]
[1754853814230,0.5,805.21,803.75,3.9173252]
[1754853814231,0.5,805.21,804.08,2.7980894]
[1754853814725,0.5,805.21,804.09,2.7980894]
[1754853815125,0.5,805.21,804.13,2.7980894]
[1754853815629,0.5,805.21,804.14,2.7980894]
[1754853816127,0.5,805.21,804.18,2.7980894]
[1754853816731,0.5,805.21,804.19,2.7980894]
[1754853817429,0.5,805.21,804.25,2.7980894]
[1754853817729,0.5,805.21,804.26,2.7980894]
[1754853818233,0.5,805.21,804.45,2.7980894]
[1754853819534,0.5,805.21,804.53,2.7980894]
[1754853820432,0.5,805.21,804.61,2.7980894]
[1754853821435,0.5,805.21,804.69,2.7980894]
[1754853822536,0.5,805.21,804.75,2.7980894]
[1754853823137,0.21629282,805.24,804.75,2.7980894]
[1754853823537,0.21629282,805.24,804.78,2.7980894]
[1754853823936,0.5,805.1,804.78,2.7980894]
[1754853824134,0.5,805.1,804.77,2.7980894]
[1754853824536,0.5,805.1,804.79,2.7980894]
[1754853825534,0.5,805.1,804.82,2.7980894]
[1754853827633,0.5,805.1,804.64,2.7980894]
[1754853831741,0.5,805.1,804.65,2.7980894]
[1754853832343,0.5,805.1,804.67,2.7980894]
[1754853832841,0.5,805.1,804.66,2.7980894]
[1754853833237,0.21629282,805.24,804.66,2.7980894]
[1754853833440,0.21629282,805.24,804.65,2.7980894]
[1754853834041,0.5,805.19,804.66,2.7980894]
[1754853834537,0.5,805.19,804.65,2.7980894]
[1754853835136,0.5,805.19,804.64,2.7980894]
[1754853837542,0.5,805.19,804.75,2.7980894]
[1754853838038,0.5,805.19,804.6,2.7980894]
[1754853838641,0.5,805.19,804.61,2.7980894]
[1754853839644,0.5,805.19,804.6,2.7980894]
[1754853840345,0.5,805.19,804.57,2.7980894]
[1754853841846,0.5,805.19,804.56,2.7980894]
[1754853842843,0.5,805.19,804.58,2.7980894]
[1754853843446,0.5,805.19,804.57,2.7980894]
[1754853843842,0.5,805.19,804.58,2.7980894]
[1754853844547,0.5,805.19,804.57,2.7980894]
[1754853844843,0.5,805.19,804.58,2.7980894]
[1754853845447,0.5,805.19,804.57,2.7980894]
[1754853846444,0.5,805.19,804.56,2.7980894]
[1754853846948,0.5,805.19,804.58,2.7980894]
[1754853847547,0.5,805.19,804.59,2.7980894]
[1754853847745,0.21626593,805.34,804.59,2.7980894]
[1754853847946,0.21626593,805.34,804.66,2.7980894]
[1754853848751,0.5,805.27,804.84,2.7980894]
[1754853851650,0.5,805.27,804.83,2.7980894]
[1754853852752,0.5,805.27,804.81,2.7980894]
[1754853856355,0.5,805.27,804.14,5.5961788]
[1754853856356,0.5,805.27,804.37,2.7980894]
[1754853857756,0.5,805.27,803.97,3.9173252]
[1754853857757,0.5,805.27,804.32,2.7980894]
[1754853858258,0.5,805.27,804.33,2.7980894]
[1754853861461,0.5,805.27,804.34,2.7980894]
[1754853861958,0.5,805.27,804.33,2.7980894]
[1754853863062,0.5,805.27,804.29,2.7980894]
[1754853864064,0.5,805.27,803.91,6.7154146]
[1754853864661,0.5,805.27,803.91,2.7980894]
[1754853865062,0.5,805.27,803.95,2.7980894]
[1754853865563,0.5,805.27,803.98,2.7980894]
[1754853866064,0.5,805.27,803.63,0.21647782]
[1754853866065,0.5,805.27,803.96,2.7980894]
[1754853866565,0.5,805.27,803.95,2.7980894]
[1754853867272,0.5,805.27,803.63,0.21647782]
[1754853870273,0.5,805.27,803.74,2.7980894]
[1754853870774,0.5,805.27,803.93,2.7980894]
[1754853871372,0.5,805.27,804.23,2.7980894]
[1754853871775,0.5,805.27,804.03,2.7980894]
[1754853872274,0.5,805.27,804.0,2.7980894]
[1754853873478,0.5,805.27,804.02,2.7980894]
[1754853873974,0.5,805.27,803.98,2.7980894]
[1754853874273,0.262,805.23,803.98,2.7980894]
[1754853874877,0.5,805.21,803.98,2.7980894]
[1754853875475,0.5,805.21,803.97,2.7980894]
[1754853876176,0.5,805.21,804.18,2.7980894]
[1754853876473,0.5,805.21,804.15,2.7980894]
[1754853877578,0.5,805.21,804.29,2.7980894]
[1754853878180,0.5,805.21,804.26,2.7980894]
[1754853879176,0.5,805.21,804.11,2.7980894]
[1754853879680,0.5,805.21,804.1,2.7980894]
[1754853881779,0.5,805.21,804.11,2.7980894]
[1754853882778,0.5,805.21,804.21,2.7980894]
[1754853883484,0.5,805.21,804.17,2.7980894]
[1754853884480,0.5,805.21,804.18,2.7980894]
[1754853885583,0.5,805.21,804.17,2.7980894]
[1754853887080,0.5,805.21,804.18,2.7980894]
[1754853887581,0.5,805.21,804.13,2.7980894]
[1754853887985,0.5,805.21,804.1,2.7980894]
[1754853888687,0.5,805.21,804.11,2.7980894]
[1754853889685,0.5,805.21,804.09,2.7980894]
[1754853890186,0.5,805.21,804.1,2.7980894]
[1754853890889,0.5,805.21,804.09,2.7980894]
[1754853891189,0.5,805.21,804.06,2.7980894]
[1754853891690,0.5,805.21,804.07,2.7980894]
[1754853893292,0.5,805.21,804.1,2.7980894]
[1754853893792,0.5,805.21,804.11,2.7980894]
[1754853894994,0.5,805.21,804.12,2.7980894]
[1754853895293,0.5,805.21,804.11,2.7980894]
[1754853895792,0.5,805.21,804.13,2.7980894]
[1754853896291,0.5,805.21,804.12,2.7980894]
[1754853896897,0.5,805.21,804.13,2.7980894]
[1754853897395,0.5,805.21,804.15,2.7980894]
[1754853898496,0.5,805.21,804.14,2.7980894]
[1754853899496,0.5,805.21,804.12,2.7980894]
[1754853899999,0.5,805.21,804.11,2.7980894]
[1754853900497,0.5,805.21,804.12,2.7980894]
[1754853901700,0.5,805.21,804.1,2.7980894]
[1754853902198,0.5,805.21,804.14,2.7980894]
[1754853904200,0.5,805.21,804.13,2.7980894]
[1754853905804,0.5,805.21,804.14,2.7980894]
[1754853908104,0.5,805.21,804.17,2.7980894]
[1754853908704,0.5,805.21,804.19,2.7980894]
[1754853909001,0.5,805.21,804.23,2.7980894]
[1754853909500,0.5,805.21,804.28,2.7980894]
[1754853910103,0.5,805.21,804.31,2.7980894]
[1754853910703,0.5,805.21,804.34,2.7980894]
[1754853911204,0.5,805.21,804.41,2.7980894]
[1754853911801,0.5,805.21,804.5,2.7980894]
[1754853913204,0.5,805.21,804.47,2.7980894]
[1754853914204,0.5,805.21,804.59,2.7980894]
[1754853915404,0.5,805.21,804.6,2.7980894]
[1754853915908,0.5,805.21,804.61,2.7980894]
[1754853916407,0.5,805.21,804.58,2.7980894]
[1754853917409,0.5,805.21,804.31,3.9173252]
[1754853918109,0.5,805.21,803.75,2.7980894]
[1754853922513,0.5,805.21,803.76,2.7980894]
[1754853923215,0.5,805.21,803.73,2.7980894]
[1754853923710,0.5,805.21,803.74,2.7980894]
[1754853925110,0.5,805.21,803.75,2.7980894]
[1754853925609,0.5,805.21,803.76,2.7980894]
[1754853926315,0.5,805.21,803.79,2.7980894]
[1754853927215,0.5,805.21,804.18,2.7980894]
[1754853927818,0.5,805.21,804.39,2.7980894]
[1754853928415,0.5,805.21,804.43,2.7980894]
[1754853929918,0.5,805.21,804.45,2.7980894]
[1754853931322,0.5,805.21,804.44,2.7980894]
[1754853933028,0.5,805.21,804.67,2.7980894]
[1754853934526,0.5,805.21,804.69,2.7980894]
[1754853936130,0.5,805.21,804.68,2.7980894]
[1754853937131,0.5,805.21,804.67,2.7980894]
[1754853937643,0.5,805.21,804.56,2.7980894]
[1754853940730,0.5,805.21,804.58,2.7980894]
[1754853941832,0.5,805.21,804.52,2.7980894]
[1754853943934,0.5,805.21,804.72,2.7980894]
[1754853944932,0.5,805.21,804.73,2.7980894]
[1754853947632,0.5,805.21,804.71,2.7980894]
[1754853949632,0.5,805.21,804.73,2.7980894]
[1754853958043,0.5,805.21,804.57,2.7980894]
[1754853960552,0.5,805.21,804.56,2.7980894]
[1754853962145,0.5,805.21,804.26,3.9173252]
[1754853962644,0.5,805.03,804.26,3.9173252]
[1754853962845,0.5,805.03,804.03,2.7980894]
[1754853963148,0.5,805.03,804.02,2.7980894]
[1754853964248,0.5,805.03,804.0,2.7980894]
[1754853965349,0.5,805.03,803.99,2.7980894]
[1754853967447,0.5,805.03,803.96,2.7980894]
[1754853968251,0.5,805.03,803.99,2.7980894]
[1754853968653,0.5,805.03,804.0,2.7980894]
[1754853971149,0.5,805.03,803.98,2.7980894]
[1754853972257,0.5,805.03,804.12,2.7980894]
[1754853972757,0.5,805.03,804.31,2.7980894]
[1754853974256,0.5,805.03,804.37,2.7980894]
[1754853975358,0.5,805.03,804.36,2.7980894]
[1754853976860,0.5,805.03,804.34,2.7980894]
[1754853977657,0.5,805.03,804.43,2.7980894]
[1754853977967,0.5,805.03,804.44,2.7980894]
[1754853979057,0.5,805.03,804.48,2.7980894]
[1754853981057,0.5,805.03,804.54,2.7980894]
[1754853983165,0.5,805.03,804.32,2.7980894]
[1754853984161,0.5,805.03,804.36,2.7980894]
[1754853986769,0.5,805.03,804.37,2.7980894]
[1754853987371,0.5,805.03,804.34,2.7980894]
[1754853987772,0.5,805.03,804.29,2.7980894]
[1754853991074,0.5,805.03,804.3,2.7980894]
[1754853991476,0.5,805.03,804.32,2.7980894]
[1754853993074,0.5,805.03,804.46,2.7980894]
[1754853994278,0.5,805.03,804.45,2.7980894]
[1754853995177,0.5,805.03,804.46,2.7980894]
[1754853997173,0.5,805.03,804.18,3.9173252]
[1754853997174,0.5,805.03,804.52,2.7980894]
[1754853997877,0.5,805.03,804.54,2.7980894]
[1754853998778,0.5,805.03,804.53,2.7980894]
[1754853999375,0.5,805.03,804.49,2.7980894]
[1754854000278,0.5,805.03,804.5,2.7980894]
[1754854001378,0.5,805.03,804.48,2.7980894]
[1754854004076,0.5,805.03,804.49,2.7980894]
[1754854004579,0.5,805.03,804.5,2.7980894]
[1754854006184,0.5,805.03,804.48,2.7980894]
[1754854007076,0.5,805.03,804.53,2.7980894]
[1754854007681,0.5,805.03,804.42,2.7980894]
[1754854008682,0.5,805.03,804.45,2.7980894]
[1754854009784,0.5,805.03,804.1,2.7980894]
[1754854010184,0.5,805.03,804.24,2.7980894]
[1754854011282,0.5,805.03,804.27,2.7980894]
[1754854011486,0.5,805.21,804.27,2.7980894]
[1754854011981,0.5,805.21,804.29,2.7980894]
[1754854012383,0.5,805.21,804.28,2.7980894]
[1754854013382,0.5,805.21,804.27,2.7980894]
[1754854014482,0.5,805.21,804.26,2.7980894]
[1754854014986,0.5,805.21,804.43,2.7980894]
[1754854015387,0.5,805.21,804.42,2.7980894]
[1754854016487,0.5,805.21,804.41,2.7980894]
[1754854016989,0.5,805.21,804.4,2.7980894]
[1754854017586,0.5,805.21,804.5,2.7980894]
[1754854018089,0.5,805.21,804.48,2.7980894]
[1754854018591,0.5,805.21,804.17,2.7980894]
[1754854019090,0.5,805.21,804.15,3.9173252]
[1754854019292,0.5,805.21,804.1,2.7980894]
[1754854020697,0.5,805.21,804.08,2.7980894]
[1754854021793,0.5,804.98,804.08,2.7980894]
[1754854022396,0.5,804.98,804.06,2.7980894]
[1754854023193,0.5,804.98,804.26,2.7980894]
[1754854027499,0.5,804.98,804.31,2.7980894]
[1754854028402,0.5,804.98,804.32,2.7980894]
[1754854029001,0.5,804.98,804.33,2.7980894]
[1754854029499,0.5,804.98,804.38,2.7980894]
[1754854030600,0.5,804.98,804.45,2.7980894]
[1754854032307,0.5,804.98,804.46,2.7980894]
[1754854032901,0.21629483,805.45,804.46,2.7980894]
[1754854033302,0.21629483,805.45,804.6,2.7980894]
[1754854033702,0.5,804.98,804.6,2.7980894]
[1754854037808,0.5,804.98,804.55,2.7980894]
[1754854042809,0.21629483,805.45,804.55,2.7980894]
[1754854043008,0.21629483,805.45,804.44,2.7980894]
[1754854043608,0.471,804.98,804.43,2.7980894]
[1754854046813,0.471,804.98,804.45,2.7980894]
[1754854047818,0.471,804.98,804.41,2.7980894]
[1754854049222,0.471,804.98,804.42,2.7980894]
[1754854049723,0.471,804.98,804.44,2.7980894]
[1754854050324,0.362,804.98,804.44,2.7980894]
[1754854051830,0.362,804.98,804.43,2.7980894]
[1754854052628,0.472,804.98,804.43,2.7980894]
[1754854052833,0.21629483,805.45,804.54,2.7980894]
[1754854053732,0.383,805.12,804.54,2.7980894]
[1754854053931,0.383,805.12,804.53,2.7980894]
[1754854054733,0.273,805.12,804.53,2.7980894]
[1754854055535,0.273,805.12,804.54,2.7980894]
[1754854057538,0.273,805.12,804.42,2.7980894]
[1754854059537,0.382,805.12,804.42,2.7980894]
[1754854060039,0.273,805.12,804.42,2.7980894]
[1754854062941,0.273,805.12,804.41,2.7980894]
[1754854063446,0.273,805.12,804.42,2.7980894]
[1754854065045,0.382,805.12,804.42,2.7980894]
[1754854065245,0.5,805.06,804.42,2.7980894]
[1754854065444,0.274,805.01,804.13,2.7980894]
[1754854067447,0.274,805.01,804.25,2.7980894]
[1754854068648,0.274,805.01,804.24,2.7980894]
[1754854069547,0.274,805.01,804.23,2.7980894]
[1754854071852,0.274,805.01,804.27,2.7980894]
[1754854072348,0.274,805.01,804.26,2.7980894]
[1754854072649,0.274,805.01,804.27,2.7980894]
[1754854073151,0.274,805.01,804.28,2.7980894]
[1754854075350,0.274,805.01,804.46,2.7980894]
[1754854076550,0.274,805.01,804.47,2.7980894]
[1754854077451,0.274,805.01,804.49,2.7980894]
[1754854078454,0.274,805.01,804.5,2.7980894]
[1754854083556,0.21630357,805.04,804.5,2.7980894]
[1754854087861,0.21630357,805.04,804.46,2.7980894]
[1754854088558,0.21630357,805.04,804.38,2.7980894]
[1754854089361,0.21630357,805.04,804.37,2.7980894]
[1754854089858,0.21630357,805.04,804.38,2.7980894]
[1754854090457,0.21630357,805.04,804.39,2.7980894]
[1754854091965,0.21630357,805.04,804.22,2.7980894]
[1754854093471,0.21630357,805.04,804.23,2.7980894]
[1754854096277,0.21630357,805.04,804.15,2.7980894]
[1754854096774,0.21630357,805.04,804.12,2.7980894]
[1754854097277,0.21630357,805.04,804.1,2.7980894]
[1754854097773,0.21630357,805.04,804.0,2.7980894]
[1754854098178,0.21630357,805.04,803.96,2.7980894]
[1754854098873,0.21630357,805.04,803.93,2.7980894]
[1754854099178,0.21630357,805.04,803.9,0.21627467]
[1754854099474,0.5,805.06,803.9,0.21627467]
[1754854099878,0.5,805.06,804.14,2.7980894]
[1754854100279,0.5,805.06,804.22,2.7980894]
[1754854100777,0.5,805.06,804.16,2.7980894]
[1754854101279,0.5,805.06,804.29,2.7980894]
[1754854102381,0.5,805.06,804.28,2.7980894]
[1754854102980,0.5,805.06,804.18,2.7980894]
[1754854103577,0.5,805.06,804.15,2.7980894]
[1754854103981,0.5,805.06,804.16,2.7980894]
[1754854104581,0.5,805.06,804.15,2.7980894]
[1754854107680,0.5,805.06,804.28,2.7980894]
[1754854108181,0.5,805.06,804.3,2.7980894]
[1754854110280,0.5,805.06,804.29,2.7980894]
[1754854110885,0.5,805.06,804.32,2.7980894]
[1754854111284,0.5,805.06,804.34,2.7980894]
[1754854111783,0.5,805.06,804.38,2.7980894]
[1754854112282,0.5,805.06,804.39,2.7980894]
[1754854112787,0.5,805.06,804.52,2.7980894]
[1754854112988,0.2163614,805.18,804.52,2.7980894]
[1754854113281,0.2163614,805.18,804.59,2.7980894]
[1754854114090,0.5,805.13,804.66,2.7980894]
[1754854115591,0.5,805.13,804.63,2.7980894]
[1754854116588,0.5,805.13,804.62,2.7980894]
[1754854117693,0.5,805.13,804.6,2.7980894]
[1754854118089,0.5,805.13,804.35,3.9173252]